[Event "Early-Titled-Tuesday-Blitz-February-27-2024"]
[Site "Chess.com"]
[Date "2024.02.27"]
[Round "8"]
[White "HansOnTwitch"]
[Black "ChessLover0108"]
[Result "1-0"]
[WhiteElo "3160"]
[BlackElo "2962"]
[TimeControl "180+1"]
[EndTime "9:27:54 PST"]
[Termination "HansOnTwitch won by checkmate"]

1. e4 {[%clk 0:02:59.8]} 1... c5 {[%clk 0:02:59.8]} 2. Nf3 {[%clk 0:02:59.8]}
2... d6 {[%clk 0:03:00.4]} 3. d4 {[%clk 0:02:59.7]} 3... cxd4 {[%clk 0:03:01.3]}
4. Nxd4 {[%clk 0:03:00.5]} 4... Nf6 {[%clk 0:03:01.4]} 5. Nc3 {[%clk 0:03:00.7]}
5... a6 {[%clk 0:03:01.6]} 6. a4 {[%clk 0:02:57.9]} 6... g6 {[%clk 0:03:00.9]}
7. Be2 {[%clk 0:02:55.8]} 7... Bg7 {[%clk 0:03:01.5]} 8. Be3 {[%clk 0:02:56.1]}
8... O-O {[%clk 0:03:02.4]} 9. O-O {[%clk 0:02:56.2]} 9... Bd7 {[%clk
0:03:01.9]} 10. f3 {[%clk 0:02:54.5]} 10... Nc6 {[%clk 0:03:02.6]} 11. Qd2
{[%clk 0:02:52.9]} 11... Qa5 {[%clk 0:03:03.1]} 12. Nb3 {[%clk 0:02:52.3]} 12...
Qc7 {[%clk 0:02:54.4]} 13. a5 {[%clk 0:02:52.2]} 13... Ne5 {[%clk 0:02:05.8]}
14. Na4 {[%clk 0:02:41.8]} 14... Bc6 {[%clk 0:01:52.9]} 15. Nb6 {[%clk
0:02:41.5]} 15... Rad8 {[%clk 0:01:53.2]} 16. c4 {[%clk 0:02:42]} 16... e6
{[%clk 0:01:48]} 17. Rac1 {[%clk 0:02:41.8]} 17... Ned7 {[%clk 0:01:30.2]} 18.
Rfd1 {[%clk 0:02:40.3]} 18... Nc5 {[%clk 0:01:16.3]} 19. Nd4 {[%clk 0:02:33.2]}
19... e5 {[%clk 0:01:09.3]} 20. Nxc6 {[%clk 0:02:25.3]} 20... bxc6 {[%clk
0:01:10.2]} 21. Qc2 {[%clk 0:02:23.1]} 21... Nfd7 {[%clk 0:00:47.4]} 22. b4
{[%clk 0:02:21.8]} 22... Ne6 {[%clk 0:00:45.2]} 23. c5 {[%clk 0:02:21.3]} 23...
dxc5 {[%clk 0:00:40.6]} 24. bxc5 {[%clk 0:02:08.6]} 24... Nd4 {[%clk 0:00:35.6]}
25. Qa2 {[%clk 0:02:08.7]} 25... Qa7 {[%clk 0:00:28.7]} 26. Bf1 {[%clk
0:02:05.2]} 26... Rfe8 {[%clk 0:00:27.2]} 27. Qc4 {[%clk 0:02:00.4]} 27... Nb8
{[%clk 0:00:23.2]} 28. Rd3 {[%clk 0:01:56.8]} 28... h5 {[%clk 0:00:21.7]} 29.
Rcd1 {[%clk 0:01:57.1]} 29... Qe7 {[%clk 0:00:20.8]} 30. f4 {[%clk 0:01:51]}
30... Bh6 {[%clk 0:00:09.4]} 31. g3 {[%clk 0:01:48.7]} 31... Ne6 {[%clk
0:00:09.1]} 32. Qc1 {[%clk 0:01:33.2]} 32... Rxd3 {[%clk 0:00:07.3]} 33. Rxd3
{[%clk 0:01:31.2]} 33... exf4 {[%clk 0:00:08.2]} 34. gxf4 {[%clk 0:01:31.9]}
34... Qh4 {[%clk 0:00:06.2]} 35. f5 {[%clk 0:01:31.6]} 35... Bxe3+ {[%clk
0:00:05.7]} 36. Qxe3 {[%clk 0:01:30.7]} 36... Nf4 {[%clk 0:00:05.8]} 37. Rd2
{[%clk 0:01:24.6]} 37... Rxe4 {[%clk 0:00:05.8]} 38. Qg3 {[%clk 0:01:23.8]}
38... Qe7 {[%clk 0:00:05.8]} 39. fxg6 {[%clk 0:01:19.5]} 39... fxg6 {[%clk
0:00:06.7]} 40. Rd6 {[%clk 0:01:14.3]} 40... Qe5 {[%clk 0:00:07.3]} 41. Nc4
{[%clk 0:01:05.3]} 41... Qxc5+ {[%clk 0:00:06.9]} 42. Qf2 {[%clk 0:01:05.8]}
42... Rxc4 {[%clk 0:00:04.2]} 43. Bxc4+ {[%clk 0:01:05.5]} 43... Qxc4 {[%clk
0:00:05.1]} 44. Rd8+ {[%clk 0:01:05.8]} 44... Kh7 {[%clk 0:00:04.8]} 45. Qa7+
{[%clk 0:01:05.1]} 45... Kh6 {[%clk 0:00:04.8]} 46. Qxb8 {[%clk 0:00:53.6]}
46... Qc1+ {[%clk 0:00:02.5]} 47. Kf2 {[%clk 0:00:54]} 47... Nh3+ {[%clk
0:00:01.8]} 48. Ke2 {[%clk 0:00:48.5]} 48... Nf4+ {[%clk 0:00:01.8]} 49. Kf3
{[%clk 0:00:48.5]} 49... Qf1+ {[%clk 0:00:02.3]} 50. Ke4 {[%clk 0:00:48.4]}
50... Ne6 {[%clk 0:00:01.2]} 51. Rh8+ {[%clk 0:00:44.9]} 51... Kg5 {[%clk
0:00:01.8]} 52. Qg3+ {[%clk 0:00:40.4]} 52... Kf6 {[%clk 0:00:01.6]} 53. Qe5+
{[%clk 0:00:41]} 53... Kf7 {[%clk 0:00:02]} 54. Rh7+ {[%clk 0:00:41.4]} 54...
Kg8 {[%clk 0:00:02.6]} 55. Qh8# {[%clk 0:00:41.6]} 1-0

[Event "Early-Titled-Tuesday-Blitz-February-27-2024"]
[Site "Chess.com"]
[Date "2024.02.27"]
[Round "8"]
[White "Knightmare1014"]
[Black "Klavdia_Nik"]
[Result "1-0"]
[WhiteElo "2305"]
[BlackElo "2132"]
[TimeControl "180+1"]
[EndTime "9:27:54 PST"]
[Termination "Knightmare1014 won on time"]

1. e4 {[%clk 0:03:00.9]} 1... d6 {[%clk 0:02:58.7]} 2. d4 {[%clk 0:02:58.7]}
2... g6 {[%clk 0:02:58.2]} 3. Nf3 {[%clk 0:02:56.2]} 3... Bg7 {[%clk 0:02:58]}
4. Bc4 {[%clk 0:02:56.4]} 4... c6 {[%clk 0:02:58.2]} 5. O-O {[%clk 0:02:56]}
5... b5 {[%clk 0:02:55.5]} 6. Bb3 {[%clk 0:02:54.4]} 6... a5 {[%clk 0:02:55.4]}
7. a4 {[%clk 0:02:54.4]} 7... Qc7 {[%clk 0:02:52.1]} 8. Re1 {[%clk 0:02:47.4]}
8... b4 {[%clk 0:02:50.1]} 9. c3 {[%clk 0:02:45.4]} 9... bxc3 {[%clk 0:02:47.5]}
10. bxc3 {[%clk 0:02:45.4]} 10... Nf6 {[%clk 0:02:28.5]} 11. e5 {[%clk
0:02:39.3]} 11... Nd5 {[%clk 0:02:27.8]} 12. exd6 {[%clk 0:02:30.7]} 12... Qxd6
{[%clk 0:02:28.7]} 13. Qd3 {[%clk 0:02:23.2]} 13... Bf5 {[%clk 0:02:13]} 14. Qd1
{[%clk 0:02:19.6]} 14... e6 {[%clk 0:01:53]} 15. Ba3 {[%clk 0:02:19.2]} 15...
Qf4 {[%clk 0:01:36.2]} 16. Bxd5 {[%clk 0:02:07.9]} 16... cxd5 {[%clk 0:01:35.6]}
17. Nbd2 {[%clk 0:02:02.9]} 17... Nd7 {[%clk 0:01:33.6]} 18. Qe2 {[%clk
0:01:57.6]} 18... Bf8 {[%clk 0:01:28.6]} 19. Bxf8 {[%clk 0:01:55]} 19... Kxf8
{[%clk 0:01:29.5]} 20. Qb5 {[%clk 0:01:54.3]} 20... Qc7 {[%clk 0:01:27.3]} 21.
c4 {[%clk 0:01:52.9]} 21... Rb8 {[%clk 0:01:18.6]} 22. Qa6 {[%clk 0:01:52.7]}
22... dxc4 {[%clk 0:01:09.3]} 23. Qxc4 {[%clk 0:01:45.8]} 23... Qa7 {[%clk
0:01:02.5]} 24. d5 {[%clk 0:01:39.1]} 24... exd5 {[%clk 0:00:51.4]} 25. Qxd5
{[%clk 0:01:38.3]} 25... Qc5 {[%clk 0:00:48.4]} 26. Qxc5+ {[%clk 0:01:31]} 26...
Nxc5 {[%clk 0:00:49.3]} 27. Re5 {[%clk 0:01:30.8]} 27... Nb3 {[%clk 0:00:34.2]}
28. Nxb3 {[%clk 0:01:29.4]} 28... Rxb3 {[%clk 0:00:34.2]} 29. Rxa5 {[%clk
0:01:29.4]} 29... Kg7 {[%clk 0:00:34.2]} 30. h3 {[%clk 0:01:27.5]} 30... Rhb8
{[%clk 0:00:33.2]} 31. Nd4 {[%clk 0:01:27]} 31... Rb1+ {[%clk 0:00:28.4]} 32.
Rxb1 {[%clk 0:01:27.1]} 32... Rxb1+ {[%clk 0:00:29]} 33. Kh2 {[%clk 0:01:28]}
33... Be4 {[%clk 0:00:26.1]} 34. Ra7 {[%clk 0:01:27.5]} 34... Kf6 {[%clk
0:00:24]} 35. f3 {[%clk 0:01:23.8]} 35... Bd5 {[%clk 0:00:23.4]} 36. Nb5 {[%clk
0:01:18.9]} 36... Rb2 {[%clk 0:00:20.7]} 37. Kg3 {[%clk 0:01:17.4]} 37... h5
{[%clk 0:00:20.5]} 38. h4 {[%clk 0:01:17]} 38... Ke5 {[%clk 0:00:15.9]} 39. Nc7
{[%clk 0:01:16.6]} 39... Bc4 {[%clk 0:00:13.7]} 40. Ra5+ {[%clk 0:01:16.1]}
40... Kd4 {[%clk 0:00:13.5]} 41. Ne8 {[%clk 0:01:14.3]} 41... Bf1 {[%clk
0:00:12.6]} 42. Nf6 {[%clk 0:01:12]} 42... Rxg2+ {[%clk 0:00:12.2]} 43. Kf4
{[%clk 0:01:12.4]} 43... Ra2 {[%clk 0:00:11.4]} 44. Ra8 {[%clk 0:01:08.7]} 44...
Kc5 {[%clk 0:00:10.6]} 45. a5 {[%clk 0:01:07.9]} 45... Ra4+ {[%clk 0:00:09.2]}
46. Ne4+ {[%clk 0:01:07.1]} 46... Kb5 {[%clk 0:00:06.9]} 47. Kg5 {[%clk
0:00:58.8]} 47... Rxa5 {[%clk 0:00:05.9]} 48. Nd6+ {[%clk 0:00:57.9]} 48... Kb6+
{[%clk 0:00:05.7]} 49. Rxa5 {[%clk 0:00:56.3]} 49... Kxa5 {[%clk 0:00:06.6]} 50.
Nxf7 {[%clk 0:00:56.4]} 50... Be2 {[%clk 0:00:04.7]} 51. f4 {[%clk 0:00:54.7]}
51... Bd3 {[%clk 0:00:04.4]} 52. Ne5 {[%clk 0:00:54.2]} 1-0

[Event "Early-Titled-Tuesday-Blitz-February-27-2024"]
[Site "Chess.com"]
[Date "2024.02.27"]
[Round "8"]
[White "vladgoncharov"]
[Black "WindWhistler11"]
[Result "1-0"]
[WhiteElo "2640"]
[BlackElo "2494"]
[TimeControl "180+1"]
[EndTime "9:27:55 PST"]
[Termination "vladgoncharov won by resignation"]

1. d4 {[%clk 0:03:00.9]} 1... Nf6 {[%clk 0:02:50.3]} 2. c4 {[%clk 0:03:00]} 2...
e6 {[%clk 0:02:50.6]} 3. Nc3 {[%clk 0:02:59.2]} 3... c5 {[%clk 0:02:51.2]} 4. d5
{[%clk 0:02:58.7]} 4... exd5 {[%clk 0:02:52.1]} 5. cxd5 {[%clk 0:02:58.2]} 5...
Bd6 {[%clk 0:02:52.8]} 6. e4 {[%clk 0:02:49.1]} 6... O-O {[%clk 0:02:51.5]} 7.
Bd3 {[%clk 0:02:42.1]} 7... Re8 {[%clk 0:02:47]} 8. Nge2 {[%clk 0:02:41.2]} 8...
Bc7 {[%clk 0:02:46.6]} 9. h3 {[%clk 0:02:40.4]} 9... d6 {[%clk 0:02:47.3]} 10.
O-O {[%clk 0:02:39.6]} 10... a6 {[%clk 0:02:47.2]} 11. a4 {[%clk 0:02:38.9]}
11... Nbd7 {[%clk 0:02:47.9]} 12. Bg5 {[%clk 0:02:32.7]} 12... Rb8 {[%clk
0:02:47.6]} 13. Bh4 {[%clk 0:02:29.1]} 13... Nf8 {[%clk 0:02:47.5]} 14. Bg3
{[%clk 0:02:26.5]} 14... b5 {[%clk 0:02:33.4]} 15. axb5 {[%clk 0:02:23.4]} 15...
axb5 {[%clk 0:02:34.3]} 16. Bxb5 {[%clk 0:02:12.7]} 16... Bd7 {[%clk 0:02:29.6]}
17. Bxd7 {[%clk 0:02:06]} 17... Qxd7 {[%clk 0:02:22.5]} 18. Qc2 {[%clk
0:01:53.5]} 18... Rb4 {[%clk 0:02:20.6]} 19. f3 {[%clk 0:01:50.4]} 19... Reb8
{[%clk 0:02:20.3]} 20. Ra2 {[%clk 0:01:50.1]} 20... Bd8 {[%clk 0:02:15]} 21. Nc1
{[%clk 0:01:41.4]} 21... Nh5 {[%clk 0:02:11.1]} 22. Be1 {[%clk 0:01:30.7]} 22...
Nf4 {[%clk 0:01:57.8]} 23. N3e2 {[%clk 0:01:22.3]} 23... Nxe2+ {[%clk
0:01:42.9]} 24. Qxe2 {[%clk 0:01:21.3]} 24... R4b5 {[%clk 0:01:36.2]} 25. Bc3
{[%clk 0:01:20.5]} 25... Ng6 {[%clk 0:01:33.5]} 26. f4 {[%clk 0:01:16.7]} 26...
Bf6 {[%clk 0:01:30]} 27. e5 {[%clk 0:01:02.1]} 27... dxe5 {[%clk 0:01:18.2]} 28.
fxe5 {[%clk 0:01:01.8]} 28... Bg5 {[%clk 0:01:18.8]} 29. e6 {[%clk 0:00:48.4]}
29... Qxd5 {[%clk 0:01:17.8]} 30. exf7+ {[%clk 0:00:48]} 30... Kf8 {[%clk
0:01:07]} 31. Nd3 {[%clk 0:00:33.8]} 31... Qxa2 {[%clk 0:00:59.7]} 32. Qg4
{[%clk 0:00:23.8]} 32... Qd5 {[%clk 0:00:54.7]} 33. Nf2 {[%clk 0:00:17.4]} 33...
Be3 {[%clk 0:00:52.2]} 34. Kh1 {[%clk 0:00:16.9]} 34... Bxf2 {[%clk 0:00:51.3]}
35. Rxf2 {[%clk 0:00:15.8]} 35... R5b7 {[%clk 0:00:48.5]} 36. Qg3 {[%clk
0:00:15.6]} 36... Ra8 {[%clk 0:00:43.3]} 37. Rd2 {[%clk 0:00:15.2]} 37... Qxf7
{[%clk 0:00:40]} 38. Rf2 {[%clk 0:00:14.8]} 38... Kg8 {[%clk 0:00:32.4]} 39.
Rxf7 {[%clk 0:00:14.6]} 39... Rxf7 {[%clk 0:00:33.3]} 40. Kh2 {[%clk 0:00:14.5]}
40... Rc8 {[%clk 0:00:33.1]} 41. Qd6 {[%clk 0:00:13.9]} 41... Nf4 {[%clk
0:00:31]} 42. h4 {[%clk 0:00:12.9]} 42... Ne2 {[%clk 0:00:30.9]} 43. Be5 {[%clk
0:00:11.8]} 43... c4 {[%clk 0:00:26.7]} 44. h5 {[%clk 0:00:11.5]} 44... h6
{[%clk 0:00:26.7]} 45. Qe6 {[%clk 0:00:10.7]} 45... Rd8 {[%clk 0:00:24.1]} 46.
Bxg7 {[%clk 0:00:09.7]} 46... Kxg7 {[%clk 0:00:22.9]} 47. Qxe2 {[%clk
0:00:09.2]} 47... Rd4 {[%clk 0:00:23.1]} 48. Qe5+ {[%clk 0:00:08.4]} 48... Kh7
{[%clk 0:00:21.3]} 49. Qxd4 {[%clk 0:00:08.4]} 1-0

[Event "Early-Titled-Tuesday-Blitz-February-27-2024"]
[Site "Chess.com"]
[Date "2024.02.27"]
[Round "8"]
[White "Dewarfd"]
[Black "hmatyi07"]
[Result "0-1"]
[WhiteElo "2152"]
[BlackElo "2299"]
[TimeControl "180+1"]
[EndTime "9:27:56 PST"]
[Termination "hmatyi07 won on time"]

1. d4 {[%clk 0:02:59.4]} 1... Nf6 {[%clk 0:02:59.8]} 2. e3 {[%clk 0:02:59.5]}
2... g6 {[%clk 0:02:57.8]} 3. Nf3 {[%clk 0:02:59.2]} 3... Bg7 {[%clk 0:02:58.3]}
4. Be2 {[%clk 0:02:56.4]} 4... O-O {[%clk 0:02:58.8]} 5. b4 {[%clk 0:02:55.2]}
5... d6 {[%clk 0:02:51]} 6. Bb2 {[%clk 0:02:53.2]} 6... Re8 {[%clk 0:02:49.6]}
7. c4 {[%clk 0:02:53.1]} 7... Nbd7 {[%clk 0:02:42]} 8. O-O {[%clk 0:02:52.8]}
8... Ne4 {[%clk 0:02:41.5]} 9. Nc3 {[%clk 0:02:52.7]} 9... Nxc3 {[%clk
0:02:40.3]} 10. Bxc3 {[%clk 0:02:52.9]} 10... c5 {[%clk 0:02:35.3]} 11. a3
{[%clk 0:02:42.4]} 11... b6 {[%clk 0:02:21.5]} 12. Qd2 {[%clk 0:02:40.9]} 12...
cxd4 {[%clk 0:02:12.3]} 13. Bxd4 {[%clk 0:02:40.1]} 13... Nf6 {[%clk 0:02:10.1]}
14. Rfd1 {[%clk 0:02:35.8]} 14... Bb7 {[%clk 0:02:09.8]} 15. Rac1 {[%clk
0:02:34.6]} 15... Rc8 {[%clk 0:02:09.5]} 16. c5 {[%clk 0:02:08.9]} 16... dxc5
{[%clk 0:02:03.1]} 17. bxc5 {[%clk 0:02:08.8]} 17... Ne4 {[%clk 0:01:58.8]} 18.
Qb2 {[%clk 0:02:01.5]} 18... Bxd4 {[%clk 0:01:52.5]} 19. Rxd4 {[%clk 0:02:02.4]}
19... Qc7 {[%clk 0:01:46.8]} 20. c6 {[%clk 0:01:58.1]} 20... Nd6 {[%clk
0:01:26.6]} 21. Rdd1 {[%clk 0:01:16.8]} 21... Bxc6 {[%clk 0:01:22.2]} 22. Ne5
{[%clk 0:01:12.2]} 22... Qb7 {[%clk 0:01:19.9]} 23. Nxc6 {[%clk 0:00:17.2]}
23... Rxc6 {[%clk 0:01:19.3]} 24. Bf3 {[%clk 0:00:14]} 24... Rxc1 {[%clk
0:01:14.4]} 25. Rxc1 {[%clk 0:00:13.6]} 25... Qb8 {[%clk 0:01:11.4]} 26. h4
{[%clk 0:00:12.5]} 26... Rc8 {[%clk 0:01:10.2]} 27. h5 {[%clk 0:00:11.9]} 27...
Rxc1+ {[%clk 0:01:09.8]} 28. Qxc1 {[%clk 0:00:12.7]} 28... Qc8 {[%clk
0:01:02.1]} 29. Qb2 {[%clk 0:00:12.1]} 29... Qf5 {[%clk 0:00:45.7]} 30. Qd4
{[%clk 0:00:09]} 30... Qc5 {[%clk 0:00:40.9]} 31. Qd2 {[%clk 0:00:06.4]} 31...
e5 {[%clk 0:00:25.6]} 32. h6 {[%clk 0:00:06.5]} 32... Kf8 {[%clk 0:00:17.8]} 33.
a4 {[%clk 0:00:04.9]} 33... Ke7 {[%clk 0:00:17.8]} 34. Be2 {[%clk 0:00:03.3]}
34... f5 {[%clk 0:00:17]} 35. Qa2 {[%clk 0:00:02]} 35... Qc8 {[%clk 0:00:09]}
0-1

[Event "Early-Titled-Tuesday-Blitz-February-27-2024"]
[Site "Chess.com"]
[Date "2024.02.27"]
[Round "8"]
[White "MusicCityMaster"]
[Black "MightyGMpretender"]
[Result "0-1"]
[WhiteElo "2559"]
[BlackElo "2773"]
[TimeControl "180+1"]
[EndTime "9:27:58 PST"]
[Termination "MightyGMpretender won by resignation"]

1. d4 {[%clk 0:03:00.9]} 1... d5 {[%clk 0:02:57.3]} 2. c4 {[%clk 0:03:00.3]}
2... e6 {[%clk 0:02:58]} 3. Nc3 {[%clk 0:02:59.7]} 3... Nf6 {[%clk 0:02:58.6]}
4. cxd5 {[%clk 0:02:59.8]} 4... exd5 {[%clk 0:02:59.5]} 5. Bg5 {[%clk 0:02:59]}
5... c6 {[%clk 0:03:00.1]} 6. Qc2 {[%clk 0:02:59.4]} 6... Be6 {[%clk 0:03:00.1]}
7. e3 {[%clk 0:02:59.8]} 7... Nbd7 {[%clk 0:03:00.7]} 8. Bd3 {[%clk 0:03:00.1]}
8... h6 {[%clk 0:02:58.6]} 9. Bh4 {[%clk 0:02:59.8]} 9... g5 {[%clk 0:02:59.3]}
10. Bg3 {[%clk 0:02:59.7]} 10... Nh5 {[%clk 0:03:00]} 11. Nge2 {[%clk 0:02:59]}
11... Nxg3 {[%clk 0:02:59.4]} 12. hxg3 {[%clk 0:02:59]} 12... h5 {[%clk
0:03:00.1]} 13. O-O-O {[%clk 0:02:57.8]} 13... Qe7 {[%clk 0:02:46]} 14. Kb1
{[%clk 0:02:57.2]} 14... Nb6 {[%clk 0:02:38.8]} 15. Rhe1 {[%clk 0:02:54.9]}
15... O-O-O {[%clk 0:02:38.3]} 16. f3 {[%clk 0:02:53.7]} 16... Kb8 {[%clk
0:02:31.8]} 17. e4 {[%clk 0:02:52]} 17... dxe4 {[%clk 0:02:24.4]} 18. fxe4
{[%clk 0:02:52.4]} 18... Bg7 {[%clk 0:02:20.9]} 19. e5 {[%clk 0:02:37]} 19...
Nc4 {[%clk 0:02:20.9]} 20. Bxc4 {[%clk 0:02:31.1]} 20... Bxc4 {[%clk 0:02:20.8]}
21. Ne4 {[%clk 0:02:31.3]} 21... Be6 {[%clk 0:02:17.4]} 22. N2c3 {[%clk
0:02:26.1]} 22... h4 {[%clk 0:02:10.8]} 23. Ka1 {[%clk 0:02:20.2]} 23... hxg3
{[%clk 0:02:09.1]} 24. Nxg3 {[%clk 0:02:19.3]} 24... Rh4 {[%clk 0:02:04.6]} 25.
Nce4 {[%clk 0:02:02.7]} 25... Qb4 {[%clk 0:01:50]} 26. Nd6 {[%clk 0:01:50.4]}
26... Rxd4 {[%clk 0:01:46]} 27. Rxd4 {[%clk 0:01:39.3]} 27... Qxd4 {[%clk
0:01:45.4]} 28. Ngf5 {[%clk 0:01:34.5]} 28... Qd5 {[%clk 0:01:32.4]} 29. Qb3
{[%clk 0:01:18.6]} 29... Qxb3 {[%clk 0:01:23.2]} 30. axb3 {[%clk 0:01:19.5]}
30... Bf8 {[%clk 0:01:18.7]} 31. Ka2 {[%clk 0:01:15.9]} 31... a5 {[%clk
0:01:16.3]} 32. Nd4 {[%clk 0:00:41.7]} 32... Bxd6 {[%clk 0:01:10.8]} 33. Nxe6
{[%clk 0:00:41.3]} 33... fxe6 {[%clk 0:01:09.6]} 34. exd6 {[%clk 0:00:42.2]}
34... Rxd6 {[%clk 0:01:08.9]} 35. Re5 {[%clk 0:00:42.9]} 35... Rd5 {[%clk
0:01:08.9]} 36. Rxe6 {[%clk 0:00:42.9]} 36... Rd2 {[%clk 0:01:09.4]} 37. Re5
{[%clk 0:00:39]} 37... Rxg2 {[%clk 0:01:08.8]} 38. Rxa5 {[%clk 0:00:38.2]} 38...
b5 {[%clk 0:01:09.4]} 39. b4 {[%clk 0:00:32.8]} 39... Rg4 {[%clk 0:01:09.2]} 40.
Kb3 {[%clk 0:00:31.1]} 40... Rg1 {[%clk 0:01:09.7]} 41. Kc2 {[%clk 0:00:28.5]}
41... Rg4 {[%clk 0:01:05.8]} 42. Kc3 {[%clk 0:00:25.1]} 42... Rg3+ {[%clk
0:01:03.3]} 43. Kc2 {[%clk 0:00:23.5]} 43... Rg2+ {[%clk 0:01:03.2]} 44. Kc3
{[%clk 0:00:23.7]} 44... Rg1 {[%clk 0:01:03.8]} 45. Kc2 {[%clk 0:00:23.2]} 45...
Rf1 {[%clk 0:00:40.4]} 46. Ra3 {[%clk 0:00:22.8]} 46... Rf4 {[%clk 0:00:40.8]}
47. Rg3 {[%clk 0:00:21.9]} 47... g4 {[%clk 0:00:41.2]} 48. Kc3 {[%clk
0:00:17.3]} 48... Kc7 {[%clk 0:00:30.1]} 49. Rg1 {[%clk 0:00:17.5]} 49... Kd6
{[%clk 0:00:30.6]} 50. b3 {[%clk 0:00:15.9]} 50... Ke5 {[%clk 0:00:29.9]} 51.
Re1+ {[%clk 0:00:13.2]} 51... Kf5 {[%clk 0:00:29.5]} 52. Re8 {[%clk 0:00:12.5]}
52... g3 {[%clk 0:00:29.7]} 53. Rf8+ {[%clk 0:00:12.5]} 53... Kg4 {[%clk
0:00:29.8]} 54. Rc8 {[%clk 0:00:11.9]} 54... g2 {[%clk 0:00:29]} 55. Rg8+ {[%clk
0:00:11.9]} 55... Kf3 {[%clk 0:00:29.3]} 0-1

[Event "Early-Titled-Tuesday-Blitz-February-27-2024"]
[Site "Chess.com"]
[Date "2024.02.27"]
[Round "8"]
[White "Der_Balak_3Halak"]
[Black "bazar-wokzal"]
[Result "1-0"]
[WhiteElo "2461"]
[BlackElo "2638"]
[TimeControl "180+1"]
[EndTime "9:27:58 PST"]
[Termination "Der_Balak_3Halak won by resignation"]

1. e4 {[%clk 0:03:00.9]} 1... Nc6 {[%clk 0:02:57.8]} 2. Nf3 {[%clk 0:02:59.6]}
2... d5 {[%clk 0:02:58]} 3. e5 {[%clk 0:02:59.2]} 3... Bg4 {[%clk 0:02:57.4]} 4.
Bb5 {[%clk 0:02:57.7]} 4... e6 {[%clk 0:02:56.8]} 5. d4 {[%clk 0:02:57.7]} 5...
a6 {[%clk 0:02:50.5]} 6. Bxc6+ {[%clk 0:02:55.8]} 6... bxc6 {[%clk 0:02:51.4]}
7. Bg5 {[%clk 0:02:53.8]} 7... Qb8 {[%clk 0:02:43.7]} 8. b3 {[%clk 0:02:42.9]}
8... c5 {[%clk 0:02:42.4]} 9. c3 {[%clk 0:02:40.9]} 9... cxd4 {[%clk 0:02:40.9]}
10. cxd4 {[%clk 0:02:41.8]} 10... c5 {[%clk 0:02:41]} 11. O-O {[%clk 0:02:30.2]}
11... cxd4 {[%clk 0:02:34.7]} 12. Qc2 {[%clk 0:02:26.6]} 12... Qc8 {[%clk
0:02:29]} 13. Nxd4 {[%clk 0:02:26.5]} 13... Qxc2 {[%clk 0:02:26.6]} 14. Nxc2
{[%clk 0:02:27.4]} 14... Bc5 {[%clk 0:02:17.9]} 15. b4 {[%clk 0:02:24.4]} 15...
Bb6 {[%clk 0:02:16.5]} 16. Be3 {[%clk 0:02:22.8]} 16... Rb8 {[%clk 0:02:13.8]}
17. Nc3 {[%clk 0:02:16.9]} 17... Ne7 {[%clk 0:02:08.3]} 18. a3 {[%clk
0:02:13.9]} 18... Bf5 {[%clk 0:01:50.9]} 19. Bxb6 {[%clk 0:02:10]} 19... Bxc2
{[%clk 0:01:39.4]} 20. Bc5 {[%clk 0:02:08.5]} 20... Nc6 {[%clk 0:01:24.8]} 21.
Rac1 {[%clk 0:02:01.4]} 21... Bb3 {[%clk 0:01:18.4]} 22. Ne2 {[%clk 0:01:56.4]}
22... Bc4 {[%clk 0:01:15.8]} 23. Rfe1 {[%clk 0:01:55.5]} 23... Bxe2 {[%clk
0:01:14.6]} 24. Rxe2 {[%clk 0:01:56.4]} 24... Kd7 {[%clk 0:01:14.5]} 25. Bd6
{[%clk 0:01:54.2]} 25... Rb6 {[%clk 0:01:02.2]} 26. Rec2 {[%clk 0:01:49]} 26...
Rc8 {[%clk 0:01:00.8]} 27. a4 {[%clk 0:01:46.3]} 27... f6 {[%clk 0:00:46.5]} 28.
f4 {[%clk 0:01:44.5]} 28... g5 {[%clk 0:00:42.7]} 29. g3 {[%clk 0:01:43.6]}
29... h5 {[%clk 0:00:36.2]} 30. Kf2 {[%clk 0:01:40.5]} 30... Rb7 {[%clk
0:00:20.3]} 31. h4 {[%clk 0:01:19.9]} 31... gxf4 {[%clk 0:00:19.8]} 32. gxf4
{[%clk 0:01:20.1]} 32... Na7 {[%clk 0:00:18.3]} 33. Ke3 {[%clk 0:01:15.8]} 33...
Rxc2 {[%clk 0:00:16.2]} 34. Rxc2 {[%clk 0:01:16.7]} 34... Nc6 {[%clk 0:00:15]}
35. Rb2 {[%clk 0:01:09.5]} 35... fxe5 {[%clk 0:00:14.7]} 36. fxe5 {[%clk
0:01:10.4]} 36... Ne7 {[%clk 0:00:14.6]} 37. Bxe7 {[%clk 0:01:03.6]} 37... Kxe7
{[%clk 0:00:14.6]} 38. Kd4 {[%clk 0:01:02.8]} 38... Rc7 {[%clk 0:00:14.1]} 39.
b5 {[%clk 0:00:58.6]} 39... Rc4+ {[%clk 0:00:13.2]} 40. Kd3 {[%clk 0:00:59.2]}
40... axb5 {[%clk 0:00:13.3]} 41. axb5 {[%clk 0:00:59.2]} 41... Kd7 {[%clk
0:00:13.6]} 42. Rc2 {[%clk 0:00:50.6]} 42... Rb4 {[%clk 0:00:13]} 43. Rc5 {[%clk
0:00:44.2]} 43... Rxh4 {[%clk 0:00:12.5]} 44. b6 {[%clk 0:00:44.5]} 44... Rb4
{[%clk 0:00:12]} 45. Rc7+ {[%clk 0:00:44.7]} 45... Kd8 {[%clk 0:00:12.3]} 46.
Rc6 {[%clk 0:00:44.9]} 46... Kd7 {[%clk 0:00:11.3]} 47. Rc7+ {[%clk 0:00:41.5]}
47... Kd8 {[%clk 0:00:11.6]} 48. Rc6 {[%clk 0:00:32.5]} 48... Ke7 {[%clk
0:00:11.5]} 49. Rc7+ {[%clk 0:00:27.5]} 49... Kf8 {[%clk 0:00:11.3]} 50. b7
{[%clk 0:00:27.8]} 1-0